bitfinex/quotes_BTCUSD_20251215
["timestamp","ask_amount","ask_price","bid_price","bid_amount"]
[1765762039770,0.24217323,88722.0,88721.0,5.659e-05]
[1765762043305,0.01675,88722.0,88721.0,5.659e-05]
[1765762043698,0.26599323,88722.0,88721.0,5.659e-05]
[1765762043904,0.3783663,88722.0,88721.0,5.659e-05]
[1765762045219,0.3545463,88722.0,88721.0,5.659e-05]
[1765762045844,0.3387963,88722.0,88721.0,5.659e-05]
[1765762046809,0.22642323,88722.0,88721.0,5.659e-05]
[1765762048359,0.001,88722.0,88721.0,5.659e-05]
[1765762048564,0.0228283,88722.0,88721.0,5.659e-05]
[1765762049917,0.0228283,88722.0,88721.0,0.01556659]
[1765762050095,0.11337307,88722.0,88721.0,0.00166946]
[1765762050299,0.3387963,88722.0,88721.0,0.00166946]
[1765762050881,0.3377963,88722.0,88721.0,0.00166946]
[1765762051553,0.3377963,88722.0,88721.0,0.00266946]
[1765762052385,0.11237307,88722.0,88721.0,0.00266946]
[1765762055483,0.11237307,88722.0,88721.0,0.00105659]
[1765762055484,0.3787763,88722.0,88721.0,0.00105659]
[1765762056686,0.3787763,88722.0,88721.0,5.659e-05]
[1765762056845,0.3807763,88722.0,88721.0,5.659e-05]
[1765762057055,0.3807763,88722.0,88721.0,0.00105659]
[1765762057486,0.3787763,88722.0,88721.0,0.00105659]
[1765762057845,1.6694763,88722.0,88721.0,0.00105659]
[1765762059017,1.6694763,88722.0,88689.0,0.01127535]
[1765762059018,1.6694763,88722.0,88689.0,0.04010214]
[1765762059019,0.22549948,88692.0,88689.0,0.04010214]
[1765762059220,0.37150285,88690.0,88689.0,5.664e-05]
[1765762059762,0.39594285,88690.0,88689.0,5.664e-05]
[1765762059969,0.28356978,88690.0,88689.0,5.664e-05]
[1765762060138,0.39594285,88690.0,88689.0,5.664e-05]
[1765762060347,0.39594285,88690.0,88689.0,0.00405664]
[1765762060514,0.39594285,88690.0,88689.0,5.664e-05]
[1765762060768,0.39594285,88690.0,88689.0,0.00405664]
[1765762061177,0.39594285,88690.0,88689.0,0.00705664]
[1765762061968,0.39594285,88690.0,88689.0,0.00866951]
[1765762061969,0.03362522,88690.0,88689.0,0.00866951]
[1765762062918,0.05806522,88690.0,88689.0,0.00866951]
[1765762063501,0.17043829,88690.0,88689.0,0.00705664]
[1765762063906,0.05806522,88690.0,88689.0,0.00705664]
[1765762064121,0.17043829,88690.0,88689.0,0.00705664]
[1765762064469,0.17043829,88690.0,88689.0,0.00405664]
[1765762064652,0.17043829,88690.0,88689.0,0.00505664]
[1765762065686,0.17043829,88690.0,88689.0,0.00105664]
[1765762065900,0.17043829,88690.0,88689.0,0.00205664]
[1765762071135,0.39594285,88690.0,88689.0,0.00205664]
[1765762072145,0.28356978,88690.0,88689.0,0.00205664]
[1765762072371,0.39594285,88690.0,88689.0,0.00205664]
[1765762075246,0.17043829,88690.0,88689.0,0.00205664]
[1765762076566,0.39594285,88690.0,88689.0,0.00205664]
[1765762079782,0.25912978,88690.0,88689.0,0.00205664]
[1765762080145,0.2367745,88692.0,88689.0,0.00366951]
[1765762080146,0.01127497,88692.0,88689.0,0.00366951]
[1765762080576,0.01612,88690.0,88689.0,0.00366951]
[1765762081161,0.03972,88690.0,88689.0,0.00366951]
[1765762081359,0.03972,88690.0,88689.0,0.00266951]
[1765762081588,0.01612,88690.0,88689.0,0.00266951]
[1765762081797,0.01612,88690.0,88689.0,0.00366951]
[1765762081915,0.01612,88690.0,88689.0,0.00266951]
[1765762082115,0.03972,88690.0,88689.0,0.00366951]
[1765762082337,0.03972,88690.0,88689.0,0.00266951]
[1765762082545,0.01612,88690.0,88689.0,0.00366951]
[1765762082947,0.23677547,88692.0,88689.0,0.00366951]
[1765762083149,0.26037547,88692.0,88689.0,0.00366951]
[1765762083582,0.03487497,88692.0,88689.0,0.00366951]
[1765762084393,0.01161,88695.0,88690.0,0.23677978]
[1765762084651,0.01161,88695.0,88692.0,0.01127497]
[1765762084875,0.01161,88695.0,88690.0,0.00161287]
[1765762084876,0.01127484,88693.0,88690.0,0.00161287]
[1765762085248,0.03487484,88693.0,88690.0,0.00161287]
[1765762085452,0.24162202,88691.0,88690.0,0.00161287]
[1765762085869,0.26522202,88691.0,88690.0,0.00161287]
[1765762086273,0.37759509,88691.0,88690.0,0.00161287]
[1765762086740,0.26522202,88691.0,88690.0,0.00161287]
[1765762087550,0.03972,88691.0,88690.0,0.00161287]
[1765762087751,0.01127484,88693.0,88690.0,0.00161287]
[1765762088174,0.01127484,88693.0,88690.0,0.00261287]
[1765762088379,0.01127471,88694.0,88691.0,0.0112751]
[1765762089081,0.02288459,88695.0,88691.0,0.23677656]
[1765762089691,0.02288459,88695.0,88691.0,0.0112751]
[1765762089892,0.02288459,88695.0,88691.0,0.0122751]
[1765762090049,0.02288459,88695.0,88691.0,0.23777682]
[1765762090659,0.02288459,88695.0,88692.0,0.01127497]
[1765762091507,0.02288459,88695.0,88693.0,0.22549693]
[1765762091508,0.01161,88695.0,88693.0,0.22549693]
[1765762091884,0.01161,88695.0,88693.0,0.2271098]
[1765762092123,0.01161,88695.0,88693.0,0.00161287]
[1765762093106,0.24909439,88694.0,88693.0,0.00161287]
[1765762093455,0.22549439,88694.0,88693.0,0.00161287]
[1765762093869,0.33786746,88694.0,88693.0,0.00161287]
[1765762094070,0.11237307,88694.0,88693.0,0.00161287]
[1765762094269,0.12398307,88695.0,88693.0,0.00161287]
[1765762094493,0.26521439,88694.0,88693.0,0.00161287]
[1765762095243,0.01612,88694.0,88693.0,0.00161287]
[1765762095499,0.12398307,88695.0,88693.0,0.00161287]
[1765762095711,0.14758307,88695.0,88693.0,0.22710943]
[1765762096056,0.12398307,88695.0,88693.0,0.22710943]
[1765762096259,0.0236,88694.0,88693.0,0.22710943]
[1765762096664,0.0236,88694.0,88693.0,0.00161287]
[1765762097669,0.0236,88694.0,88693.0,0.2271098]
[1765762099586,0.03972,88694.0,88693.0,0.00161287]
[1765762100537,0.03972,88694.0,88693.0,0.2271098]
[1765762100776,0.01161,88695.0,88693.0,0.2271098]
[1765762101263,0.0236,88705.0,88701.0,0.23674796]
[1765762101883,0.23673846,88706.0,88701.0,0.23674796]
[1765762102109,0.03521,88704.0,88701.0,0.23674796]
[1765762102307,0.03521,88704.0,88701.0,0.01127383]
[1765762102512,0.03521,88704.0,88702.0,0.22547405]
[1765762102795,0.01161,88704.0,88702.0,0.22547405]
[1765762103317,0.01161,88704.0,88701.0,0.01127383]
[1765762103691,0.01161,88704.0,88702.0,0.22547405]
[1765762104100,0.01261,88704.0,88702.0,0.22547405]
[1765762104323,0.001,88704.0,88702.0,0.22708692]
[1765762104514,0.01127255,88711.0,88707.0,0.01127306]
[1765762104812,0.01127268,88710.0,88705.0,0.01127332]
[1765762104962,0.01127294,88708.0,88705.0,0.01127332]
[1765762105178,0.02369281,88709.0,88706.0,0.01127319]
[1765762105374,0.03602,88709.0,88706.0,0.23673486]
[1765762106234,0.03602,88709.0,88706.0,0.01127319]
[1765762106438,0.01127332,88705.0,88702.0,0.01288657]
[1765762106799,0.24158278,88707.0,88704.0,0.01127344]
[1765762106800,0.02739306,88707.0,88704.0,0.01127344]
[1765762106938,0.03487294,88708.0,88704.0,0.23674193]
[1765762107276,0.23673174,88708.0,88707.0,0.001]
[1765762107654,0.01127306,88707.0,88704.0,0.01127344]
[1765762107976,0.01127306,88707.0,88704.0,0.01227344]
[1765762108477,0.01127306,88707.0,88704.0,0.01427344]
[1765762108662,0.01127306,88707.0,88704.0,0.01227344]
[1765762109063,0.01127306,88707.0,88704.0,0.001]
[1765762109668,0.22546389,88706.0,88704.0,0.001]
[1765762110096,0.22546389,88706.0,88704.0,0.003]
[1765762110622,0.22546389,88706.0,88704.0,0.002]
[1765762110826,0.01127332,88705.0,88702.0,0.01288657]
[1765762111009,0.01127332,88705.0,88704.0,0.001]
[1765762111338,0.03423306,88707.0,88704.0,0.003]
[1765762111678,0.01127306,88707.0,88704.0,0.002]
[1765762111878,0.01127306,88707.0,88703.0,0.01127357]
[1765762112086,0.01127255,88711.0,88706.0,0.01511]
[1765762112296,0.01127217,88714.0,88706.0,0.01511]
[1765762112297,0.01127243,88712.0,88707.0,0.01127306]
[1765762112681,0.03547243,88712.0,88708.0,0.01127294]
[1765762113587,0.0242,88712.0,88709.0,0.01127281]
[1765762113815,0.00693,88715.0,88712.0,0.01127243]
[1765762114188,0.01127217,88714.0,88711.0,0.01127255]
[1765762114423,0.01127217,88714.0,88708.0,0.23772928]
[1765762114424,0.01127243,88712.0,88708.0,0.23772928]
[1765762114623,0.01127255,88711.0,88708.0,0.001]
[1765762114824,0.01127255,88711.0,88707.0,0.01127306]
[1765762114956,0.01127255,88711.0,88705.0,0.48324673]
[1765762114957,0.01127268,88710.0,88705.0,0.48324673]
[1765762115160,0.01652,88706.0,88700.0,0.71999927]
[1765762115379,0.02257306,88707.0,88703.0,0.01288644]
[1765762115614,0.12364575,88710.0,88704.0,0.23674241]
[1765762115839,0.01127268,88710.0,88704.0,0.23674241]
[1765762116193,0.01127294,88708.0,88705.0,0.01127332]
[1765762117303,0.01127294,88708.0,88705.0,0.01327332]
[1765762117513,0.01127294,88708.0,88705.0,0.002]
[1765762117672,0.22546135,88707.0,88705.0,0.001]
[1765762118875,0.0113,88709.0,88706.0,0.22546389]
[1765762119082,0.22544001,88716.0,88706.0,0.22546389]
[1765762119083,0.02369179,88717.0,88712.0,0.23671868]
[1765762120170,0.01242,88717.0,88714.0,0.22544356]
[1765762120311,0.25449281,88723.0,88718.0,0.01127166]
[1765762120312,0.02369116,88722.0,88718.0,0.01127166]
[1765762120888,0.01242,88722.0,88719.0,0.23670239]
[1765762121336,0.01242,88722.0,88715.0,0.22544066]
[1765762121492,0.01242,88722.0,88715.0,0.2254973]
[1765762121694,0.01242,88722.0,88716.0,0.01127192]
[1765762122719,0.01242,88722.0,88719.0,0.01127154]
[1765762123097,0.01242,88722.0,88721.0,0.22542577]
[1765762123314,0.26087807,88729.0,88724.0,0.0112709]
[1765762123855,0.0242,88727.0,88724.0,0.0112709]
[1765762124683,0.0242,88727.0,88725.0,0.01127078]
[1765762125134,0.01652,88726.0,88725.0,0.01127078]
[1765762125728,0.04072,88726.0,88725.0,0.01127078]
[1765762125962,0.04072,88726.0,88722.0,0.01127116]
[1765762125963,0.01127078,88725.0,88722.0,0.01127116]
[1765762126137,0.0112709,88724.0,88721.0,0.01127128]
[1765762126341,0.01127116,88722.0,88718.0,0.01127166]
[1765762126661,0.0113,88724.0,88719.0,0.23670239]
[1765762127024,0.0113,88724.0,88721.0,0.23669651]
[1765762127226,0.11237307,88723.0,88721.0,0.23669651]
[1765762128233,0.0113,88724.0,88721.0,0.23669651]
[1765762128856,0.001,88723.0,88721.0,0.01127128]
[1765762129727,0.001,88723.0,88722.0,0.26346323]
[1765762130001,0.001,88723.0,88722.0,0.2650761]
[1765762130202,0.01126989,88732.0,88729.0,0.01127027]
[1765762130608,0.23667068,88731.0,88726.0,0.01127065]
[1765762131052,0.01127014,88730.0,88727.0,0.01127052]
[1765762131254,0.01127001,88731.0,88728.0,0.01127039]
[1765762131597,0.01126989,88732.0,88729.0,0.01127027]
[1765762131818,0.01126989,88732.0,88728.0,0.01127039]
[1765762132025,0.01327001,88731.0,88728.0,0.01127039]
[1765762132236,0.01127014,88730.0,88727.0,0.01127052]
[1765762132659,0.23667571,88729.0,88724.0,0.23668813]
[1765762132978,0.01127014,88730.0,88725.0,0.01127078]
[1765762133407,0.01127014,88730.0,88727.0,0.001]
[1765762133611,0.01127014,88730.0,88727.0,0.01227052]
[1765762133836,0.01127014,88730.0,88727.0,0.01127052]
[1765762135261,0.23667571,88729.0,88725.0,0.01227078]
[1765762135593,0.01127039,88728.0,88725.0,0.01127078]
[1765762135803,0.01127039,88728.0,88727.0,0.001]
[1765762135997,0.01127039,88728.0,88725.0,0.01127078]
[1765762136382,0.01127039,88728.0,88725.0,0.01227078]
[1765762136586,0.01127039,88728.0,88725.0,0.01127078]
[1765762136787,0.01127039,88728.0,88725.0,0.01227078]
[1765762136996,0.01127039,88728.0,88727.0,0.001]
[1765762137196,0.2366604,88735.0,88730.0,0.01127014]
[1765762137403,0.23666504,88733.0,88729.0,0.01127027]
[1765762138516,0.22540092,88731.0,88727.0,0.01288339]
[1765762139555,0.01127014,88730.0,88727.0,0.01288339]
[1765762140303,0.0348,88734.0,88727.0,0.01288339]
[1765762140304,0.2253535,88750.0,88738.0,0.22538258]
[1765762140503,0.0124,88759.0,88738.0,0.22538258]
[1765762140504,0.0124,88752.0,88738.0,0.34967553]
[1765762140708,0.01126697,88755.0,88738.0,0.34967553]
[1765762140887,0.0112676,88750.0,88738.0,0.34967553]
[1765762141119,0.01126798,88747.0,88738.0,0.32714553]
[1765762141320,0.01126798,88747.0,88738.0,0.22699545]
[1765762141321,0.03957499,88739.0,88738.0,0.22699545]
[1765762141454,0.00024499,88739.0,88738.0,0.22699545]
[1765762141655,0.00024499,88739.0,88738.0,0.22799545]
[1765762142062,0.00024499,88739.0,88738.0,0.23099545]
[1765762142240,0.00024499,88739.0,88738.0,0.22799545]
[1765762142703,0.00024499,88739.0,88738.0,0.22999545]
[1765762142936,0.00024499,88739.0,88738.0,0.22899545]
[1765762143085,0.00024499,88739.0,88738.0,0.23099545]
[1765762143699,0.00024499,88739.0,88738.0,0.22899545]
[1765762143909,0.00024499,88739.0,88738.0,0.22999545]
[1765762150521,0.00024499,88739.0,88738.0,0.00461287]
[1765762150771,0.00024499,88739.0,88738.0,0.22999545]
[1765762151319,0.00024499,88739.0,88738.0,0.00461287]
[1765762151531,0.04577499,88739.0,88738.0,0.003]
[1765762151869,0.27115503,88739.0,88738.0,0.003]
[1765762152456,0.27115503,88739.0,88736.0,0.01126938]
[1765762152457,0.15814806,88739.0,88736.0,0.01126938]
[1765762152618,0.02227499,88739.0,88738.0,0.22538258]
[1765762152997,0.02227499,88739.0,88738.0,0.22738258]
[1765762153325,0.00024499,88739.0,88738.0,0.22638258]
[1765762155379,0.00024499,88739.0,88738.0,0.002]
[1765762155380,0.05197499,88739.0,88738.0,0.002]
[1765762156563,0.16434806,88739.0,88738.0,0.002]
[1765762157859,0.16434806,88739.0,88738.0,0.001]
[1765762158056,0.16434806,88739.0,88720.0,0.01127141]
[1765762158057,0.11237307,88724.0,88720.0,0.01127141]
[1765762158255,0.11237307,88728.0,88726.0,0.01127065]
[1765762158457,0.01126963,88734.0,88731.0,0.01127001]
[1765762158661,0.01126912,88738.0,88733.0,0.08464008]
[1765762159112,0.01126938,88736.0,88733.0,0.09590984]
[1765762159497,0.01126925,88737.0,88733.0,0.09590984]
[1765762159701,0.01264499,88739.0,88734.0,0.25919998]
[1765762159844,0.01264499,88739.0,88734.0,0.23666071]
[1765762160026,0.01264499,88739.0,88735.0,0.0181197]
[1765762160230,0.01264499,88739.0,88736.0,0.01126938]
[1765762161173,0.01126912,88738.0,88735.0,0.01126951]
[1765762161390,0.01126912,88738.0,88734.0,0.01126963]
[1765762161538,0.01264499,88739.0,88736.0,0.01126938]
[1765762161740,0.0235,88738.0,88734.0,0.01126963]
[1765762161941,0.01126938,88736.0,88733.0,0.01226976]
[1765762162158,0.01126938,88736.0,88733.0,0.01126976]
[1765762162377,0.01264499,88739.0,88736.0,0.01126938]
[1765762162603,0.00024499,88739.0,88736.0,0.03380814]
[1765762162804,0.01126912,88738.0,88734.0,0.01126963]
[1765762163456,0.03476912,88738.0,88734.0,0.01126963]
[1765762163660,0.01126938,88736.0,88733.0,0.001]
[1765762164020,0.03476938,88736.0,88733.0,0.001]
[1765762164221,0.0235,88736.0,88733.0,0.01226976]
[1765762164538,0.11237307,88736.0,88735.0,0.01126951]
[1765762164743,0.11237307,88734.0,88733.0,0.01126976]
[1765762164950,0.01126938,88736.0,88733.0,0.01126976]
[1765762165352,0.11237307,88737.0,88733.0,0.01226976]
[1765762166103,0.12364232,88737.0,88733.0,0.01326976]
[1765762166407,0.12364232,88737.0,88733.0,0.01126976]
[1765762166607,0.12364232,88737.0,88733.0,0.01226976]
[1765762166811,0.01126938,88736.0,88733.0,0.01226976]
[1765762167792,0.11237307,88737.0,88734.0,0.01126963]
[1765762168767,0.12364232,88737.0,88734.0,0.01126963]
[1765762168951,0.12364232,88737.0,88734.0,0.001]
[1765762169354,0.11237307,88737.0,88734.0,0.23766199]
[1765762169778,0.01264499,88739.0,88737.0,0.22538442]
[1765762169985,0.00024499,88739.0,88737.0,0.22538442]
[1765762170990,0.00024499,88739.0,88734.0,0.23766199]
[1765762170991,0.03857912,88738.0,88734.0,0.001]
[1765762171226,0.01512,88737.0,88734.0,0.01126963]
[1765762171482,0.01151399,88739.0,88734.0,0.01126963]
[1765762171483,0.00024499,88739.0,88736.0,0.23665704]
[1765762171725,0.00024499,88739.0,88737.0,0.02253851]
[1765762173380,0.01243499,88739.0,88737.0,0.02253851]
[1765762173608,0.01243499,88739.0,88733.0,0.01126976]
[1765762173609,0.01126938,88736.0,88733.0,0.01126976]
[1765762173943,0.04933912,88738.0,88734.0,0.01126963]
[1765762174064,0.02295,88738.0,88736.0,0.22538766]
[1765762174663,0.01243499,88739.0,88738.0,0.22538258]
[1765762175103,0.01243499,88739.0,88736.0,0.01126938]
[1765762175592,0.24908547,88739.0,88735.0,0.01126951]
[1765762176219,0.01126912,88738.0,88735.0,0.01126951]
[1765762176432,0.23665511,88737.0,88733.0,0.01126976]
[1765762176832,0.03421938,88736.0,88733.0,0.01126976]
[1765762177032,0.03421938,88736.0,88732.0,0.23666765]
[1765762177413,0.01512,88733.0,88732.0,0.01126989]
[1765762177950,0.01512,88733.0,88732.0,0.23666771]
[1765762178152,0.01126938,88736.0,88733.0,0.01126976]
[1765762178352,0.01126951,88735.0,88732.0,0.01126989]
[1765762178562,0.01126951,88735.0,88733.0,0.001]
[1765762179085,0.03421938,88736.0,88733.0,0.01226976]
[1765762179560,0.01126938,88736.0,88733.0,0.001]
[1765762179760,0.01126976,88733.0,88730.0,0.01127014]
[1765762179941,0.01126976,88733.0,88729.0,0.01127027]
[1765762180140,0.01126976,88733.0,88732.0,0.001]
[1765762180539,0.23665971,88735.0,88732.0,0.001]
[1765762180741,0.11237307,88738.0,88735.0,0.01126951]
[1765762180941,0.12364219,88738.0,88735.0,0.01126951]
[1765762181262,0.13532307,88738.0,88735.0,0.01126951]
[1765762181466,0.01126938,88736.0,88732.0,0.01126989]
[1765762181733,0.01126938,88736.0,88732.0,0.01226989]
[1765762181937,0.01126938,88736.0,88732.0,0.23666749]
[1765762182220,0.3719757,88738.0,88735.0,0.001]
[1765762182443,0.3719757,88738.0,88734.0,0.01126963]
[1765762182835,0.01126925,88737.0,88733.0,0.01126976]
[1765762183624,0.01126925,88737.0,88734.0,0.01126963]
[1765762184309,0.13532307,88738.0,88736.0,0.22538766]
[1765762184517,0.11237307,88738.0,88736.0,0.22538766]
[1765762186544,0.01243499,88739.0,88736.0,0.23665704]
[1765762186748,0.01243499,88739.0,88738.0,0.22538258]
[1765762187170,0.00024499,88739.0,88738.0,0.26683545]
[1765762187507,0.00024499,88739.0,88738.0,0.24296545]
[1765762188353,0.00024499,88739.0,88738.0,0.22799545]
[1765762188771,0.00024499,88739.0,88738.0,0.22699545]
[1765762188976,0.00024499,88739.0,88738.0,0.22899545]
[1765762189584,0.00024499,88739.0,88738.0,0.23099545]
[1765762190012,0.00024499,88739.0,88738.0,0.22899545]
[1765762190492,0.00024499,88739.0,88738.0,0.23099545]
[1765762192044,0.00024499,88739.0,88738.0,0.00561287]
[1765762192045,0.02755499,88739.0,88738.0,0.00561287]
[1765762192373,0.00024499,88739.0,88738.0,0.23099545]
[1765762193093,0.00024499,88739.0,88738.0,0.22899545]
[1765762193408,0.00024499,88739.0,88738.0,0.22699545]
[1765762193837,0.00024499,88739.0,88738.0,0.22799545]
[1765762199022,0.00024499,88739.0,88738.0,0.26713545]
[1765762200966,0.00024499,88739.0,88738.0,0.22799545]
[1765762201940,0.00024499,88739.0,88738.0,0.00261287]
[1765762204383,0.11261806,88739.0,88738.0,0.00261287]
[1765762204790,0.00024499,88739.0,88738.0,0.00261287]
[1765762205802,0.00024499,88739.0,88738.0,0.22799545]
[1765762207834,0.27671503,88739.0,88738.0,0.001]
[1765762208616,0.05133499,88739.0,88736.0,0.27049071]
[1765762209147,0.05233499,88739.0,88736.0,0.27049071]
[1765762209497,0.05133499,88739.0,88736.0,0.27049071]
[1765762209986,0.02688499,88739.0,88736.0,0.03383611]
[1765762210208,0.02688499,88739.0,88732.0,0.13601211]
[1765762210209,0.02688499,88739.0,88729.0,0.05137241]
[1765762210210,0.01126963,88734.0,88729.0,0.05137241]
[1765762210417,0.01535,88735.0,88733.0,0.08464008]
[1765762210589,0.03571912,88738.0,88733.0,0.08464008]
[1765762210590,0.03571912,88738.0,88735.0,0.01126951]
[1765762210746,0.02445,88737.0,88736.0,0.01126938]
[1765762210945,0.02445,88737.0,88735.0,0.01126951]
[1765762211153,0.03571925,88737.0,88734.0,0.01126963]
[1765762211985,0.02445,88737.0,88734.0,0.01126963]
[1765762212295,0.02445,88736.0,88734.0,0.01226963]
[1765762212465,0.24818499,88739.0,88734.0,0.01226963]
[1765762212466,0.01153499,88739.0,88736.0,0.01126938]
[1765762212666,0.02445,88738.0,88736.0,0.23665555]
[1765762213235,0.02445,88738.0,88736.0,0.23665663]
[1765762214486,0.22538512,88737.0,88733.0,0.08464008]
[1765762214687,0.25200437,88737.0,88733.0,0.08464008]
[1765762214903,0.03571938,88736.0,88733.0,0.09590984]
[1765762215105,0.02445,88736.0,88733.0,0.09590984]
[1765762215307,0.02445,88736.0,88734.0,0.22539274]
[1765762215473,0.01126912,88738.0,88735.0,0.01126951]
[1765762215872,0.03571912,88738.0,88735.0,0.01126951]
[1765762216108,0.01126938,88736.0,88733.0,0.08464008]
[1765762216334,0.01126938,88736.0,88733.0,0.08564008]
[1765762216467,0.02445,88737.0,88733.0,0.09690984]
[1765762216671,0.02445,88737.0,88734.0,0.23666237]
[1765762216900,0.01126912,88738.0,88735.0,0.01126951]
[1765762217672,0.03571912,88738.0,88735.0,0.01126951]
[1765762217969,0.03571912,88738.0,88734.0,0.01126963]
[1765762218315,0.03571912,88738.0,88735.0,0.001]
[1765762219495,0.00024499,88739.0,88736.0,0.01126938]
[1765762219841,0.03598499,88739.0,88736.0,0.01126938]
[1765762220269,0.03598499,88739.0,88737.0,0.22538512]
[1765762220445,0.01153499,88739.0,88737.0,0.22538512]
[1765762221055,0.01153499,88739.0,88738.0,0.06167825]
[1765762221056,0.00024499,88739.0,88738.0,0.06167825]
[1765762221239,0.00024499,88739.0,88738.0,0.17560861]
[1765762221443,0.00024499,88739.0,88738.0,0.06329112]
[1765762222261,0.00024499,88739.0,88738.0,0.07458112]
[1765762222462,0.00024499,88739.0,88738.0,0.07758112]
[1765762222862,0.00024499,88739.0,88738.0,0.07458112]
[1765762223315,0.00024499,88739.0,88738.0,0.07858112]
[1765762223811,0.00024499,88739.0,88738.0,0.08258112]
[1765762224485,0.00024499,88739.0,88738.0,0.10015533]
[1765762224689,0.00024499,88739.0,88738.0,0.12269358]
[1765762224882,0.00024499,88739.0,88738.0,0.08258112]
[1765762225250,0.00024499,88739.0,88738.0,0.07858112]
[1765762225684,0.00024499,88739.0,88738.0,0.12168889]
[1765762226922,0.00024499,88739.0,88738.0,0.07758112]
[1765762227169,0.00024499,88739.0,88738.0,0.11768889]
[1765762227319,0.00024499,88739.0,88738.0,0.12068889]
[1765762229375,0.00024499,88739.0,88738.0,0.12067601]
[1765762229535,0.00024499,88739.0,88738.0,0.12067592]
[1765762229737,0.00024499,88739.0,88738.0,0.12067603]
[1765762229935,0.00024499,88739.0,88738.0,0.12067614]
[1765762231155,0.00024499,88739.0,88738.0,0.04144112]
[1765762231543,0.00024499,88739.0,88738.0,0.01890287]
[1765762231744,0.00024499,88739.0,88738.0,0.08108112]
[1765762231944,0.00024499,88739.0,88738.0,0.09863789]
[1765762232170,0.00024499,88739.0,88738.0,0.11817614]
[1765762232346,0.00024499,88739.0,88738.0,0.07808112]
[1765762232546,0.00024499,88739.0,88738.0,0.08008112]
[1765762233419,0.05114499,88739.0,88738.0,0.01790287]
[1765762233603,0.16351806,88739.0,88738.0,0.003]
[1765762233750,0.11237307,88733.0,88732.0,0.23666771]
[1765762233949,0.12407806,88739.0,88736.0,0.23665532]
[1765762234171,0.12407806,88739.0,88738.0,0.22738258]
[1765762234333,0.14694806,88739.0,88738.0,0.002]
[1765762234561,0.16351806,88739.0,88738.0,0.002]
[1765762234755,0.16351806,88739.0,88738.0,0.004]
[1765762234976,0.16351806,88739.0,88738.0,0.002]
[1765762235390,0.16351806,88739.0,88736.0,0.002]
[1765762235391,0.11237307,88737.0,88736.0,0.002]
[1765762235602,0.11237307,88733.0,88732.0,0.01126989]
[1765762236184,0.11237307,88733.0,88731.0,0.01127001]
[1765762236547,0.12228307,88733.0,88731.0,0.01127001]
[1765762236681,0.12228307,88733.0,88731.0,0.23666986]
[1765762236909,0.12228307,88733.0,88731.0,0.01127001]
[1765762237108,0.35894812,88733.0,88730.0,0.08464008]
[1765762237313,0.38181812,88733.0,88730.0,0.08464008]
[1765762237627,0.38181812,88733.0,88731.0,0.002]
[1765762237830,0.35894812,88733.0,88731.0,0.002]
[1765762238036,0.02287,88732.0,88731.0,0.002]
[1765762238234,0.02287,88732.0,88731.0,0.001]
[1765762238453,0.02287,88732.0,88730.0,0.08564008]
[1765762238627,0.02287,88732.0,88730.0,0.08664008]
[1765762239493,0.00024499,88739.0,88731.0,0.05264287]
[1765762239698,0.00024499,88739.0,88738.0,0.02654]
[1765762239967,0.00024499,88739.0,88738.0,0.01064]
[1765762240879,0.00024499,88739.0,88738.0,0.07443112]
[1765762241443,0.00124499,88739.0,88738.0,0.1082638]
[1765762242094,0.00124499,88739.0,88738.0,0.1260638]
[1765762242457,0.00124499,88739.0,88738.0,0.15354394]
[1765762242663,0.03485,88767.0,88763.0,0.01126595]
[1765762242664,0.13561851,88767.0,88763.0,0.01126595]
[1765762242859,0.13561851,88767.0,88764.0,0.01126582]
[1765762243262,0.12363851,88767.0,88764.0,0.01126582]
[1765762243861,0.12463851,88767.0,88764.0,0.01132246]
[1765762244061,0.12563851,88767.0,88764.0,0.01132246]
[1765762244261,0.12463851,88767.0,88764.0,0.01132246]
[1765762244463,0.11237307,88767.0,88764.0,0.23663834]
[1765762244668,0.11337307,88767.0,88764.0,0.23663834]
[1765762244871,0.11437307,88767.0,88764.0,0.23663834]
[1765762245090,0.11437307,88767.0,88764.0,5.664e-05]
[1765762245091,0.11337307,88767.0,88764.0,5.664e-05]
[1765762245251,0.11337307,88767.0,88764.0,0.01132246]
[1765762245612,0.11337307,88767.0,88765.0,0.22531403]
[1765762245761,0.11237307,88767.0,88765.0,0.22531403]
[1765762246210,0.0178,88772.0,88771.0,0.2252988]
[1765762246514,0.0004,88773.0,88771.0,0.2252988]
[1765762247060,0.0004,88773.0,88772.0,0.03964]
[1765762247875,0.0014,88773.0,88772.0,0.03964]
[1765762248075,0.0024,88773.0,88772.0,0.03964]
[1765762248359,0.0014,88773.0,88772.0,0.03964]
[1765762248562,0.0014,88773.0,88772.0,0.04125287]
[1765762248765,0.00344077,88773.0,88772.0,0.04125287]
[1765762248989,0.00244077,88773.0,88772.0,0.04125287]
[1765762249210,0.00344077,88773.0,88772.0,0.33195287]
[1765762249365,0.00344077,88773.0,88772.0,0.44427036]
[1765762249570,0.00344077,88773.0,88772.0,0.46207036]
[1765762249769,0.00244077,88773.0,88772.0,0.46207036]
[1765762250005,0.00244077,88773.0,88772.0,0.34975287]
[1765762250206,0.00144077,88773.0,88772.0,0.35175287]
[1765762250804,0.00144077,88773.0,88772.0,0.34975287]
[1765762251019,0.00144077,88773.0,88772.0,0.35175287]
[1765762251235,0.00144077,88773.0,88772.0,0.35375287]
[1765762253059,0.00144077,88773.0,88772.0,0.3650159]
[1765762254592,0.00144077,88773.0,88772.0,0.3075759]
[1765762254818,0.00144077,88773.0,88772.0,0.3472159]
[1765762255502,0.00144077,88773.0,88772.0,0.3452159]
[1765762256384,0.00144077,88773.0,88772.0,0.3472159]
[1765762256629,0.00144077,88773.0,88772.0,0.0314759]
[1765762256856,0.00144077,88773.0,88772.0,0.36956552]
[1765762257066,0.00144077,88773.0,88772.0,0.3490359]
[1765762261814,0.39089756,88773.0,88772.0,0.01526303]
[1765762262014,0.39089756,88773.0,88772.0,0.004]
[1765762262255,0.27852449,88773.0,88772.0,0.004]
[1765762262477,0.39089756,88773.0,88772.0,0.004]
[1765762263006,0.39089756,88773.0,88772.0,0.002]
[1765762263224,0.39289756,88773.0,88772.0,0.002]
[1765762263454,0.3376871,88765.0,88764.0,5.664e-05]
[1765762263648,0.3376871,88765.0,88727.0,0.02486]
[1765762263649,0.3376871,88765.0,88727.0,0.03383209]
[1765762263650,0.22540855,88728.0,88727.0,0.03383209]
[1765762263818,0.25305855,88728.0,88727.0,0.03393225]
[1765762263980,0.36543162,88728.0,88727.0,0.00010016]
[1765762264186,0.14002307,88728.0,88727.0,0.00010016]
[1765762264992,0.14002307,88728.0,88727.0,0.00210016]
[1765762265196,0.16379307,88728.0,88727.0,0.00210016]
[1765762265394,0.16379307,88728.0,88727.0,0.00410016]
[1765762266290,0.05142,88728.0,88727.0,0.00410016]
[1765762266489,0.16379307,88728.0,88727.0,0.00410016]
[1765762267480,0.16379307,88728.0,88727.0,0.00010016]